fUST/lending_fUST_20250423
["ID","MTS","AMOUNT","RATE_DAILY","PERIOD"]
[358653168,1745339440010,-158.0,0.00022192,2]
[358653171,1745339440020,-420.73667954,0.00022459,2]
[358653173,1745339440030,-12562.5629343,0.0002246,2]
[358653175,1745339440042,-160.0,0.0002246,2]
[358653177,1745339440054,-160.0,0.0002246,2]
[358653179,1745339440063,-160.0,0.0002246,2]
[358653181,1745339440074,-729.16666667,0.0002246,2]
[358653183,1745339440084,-500.0,0.00022465,2]
[358653185,1745339440097,-500.0,0.00022465,2]
[358653187,1745339440106,-500.0,0.00022465,2]
[358653189,1745339440116,-500.0,0.00022465,2]
[358653191,1745339440126,-500.0,0.00022465,2]
[358653193,1745339440135,-500.0,0.00022465,2]
[358653195,1745339440145,-500.0,0.00022465,2]
[358653197,1745339440155,-500.0,0.00022465,2]
[358653199,1745339440164,-500.0,0.00022465,2]
[358653201,1745339440176,-500.0,0.00022465,2]
[358653203,1745339440186,-500.0,0.00022465,2]
[358653205,1745339440196,-500.0,0.00022465,2]
[358653207,1745339440207,-500.0,0.00022465,2]
[358653209,1745339440216,-500.0,0.00022465,2]
[358653211,1745339440226,-500.0,0.00022465,2]
[358653213,1745339440235,-753.42,0.00022465,2]
[358653215,1745339440245,-500.0,0.00022465,2]
[358653217,1745339440255,-500.0,0.00022465,2]
[358653220,1745339440264,-500.0,0.00022465,2]
[358653222,1745339440274,-1861.71,0.00022465,2]
[358653224,1745339440283,-500.0,0.00022465,2]
[358653226,1745339440293,-500.0,0.00022465,2]
[358653228,1745339440303,-500.0,0.00022465,2]
[358653230,1745339440312,-500.0,0.00022465,2]
[358653232,1745339440322,-500.0,0.00022465,2]
[358653234,1745339440331,-500.0,0.00022465,2]
[358653236,1745339440341,-500.0,0.00022465,2]
[358653238,1745339440351,-500.0,0.00022465,2]
[358653240,1745339440361,-500.0,0.00022465,2]
[358653243,1745339440382,-500.0,0.00022465,2]
[358653246,1745339440393,-500.0,0.00022465,2]
[358653248,1745339440403,-500.0,0.00022465,2]
[358653250,1745339440413,-500.0,0.00022465,2]
[358653252,1745339440423,-4876.32,0.00022465,2]
[358653254,1745339440433,-1501.19,0.00022465,2]
[358653256,1745339440443,-897.86,0.00022465,2]
[358653258,1745339440453,-500.0,0.00022465,2]
[358653260,1745339440466,-500.0,0.00022465,2]
[358653262,1745339440477,-500.0,0.00022465,2]
[358653264,1745339440487,-702.63,0.00022465,2]
[358653266,1745339440499,-500.0,0.00022465,2]
[358653269,1745339440510,-500.0,0.00022465,2]
[358653271,1745339440520,-2901.47,0.00022465,2]
[358653273,1745339440530,-500.0,0.00022465,2]
[358653275,1745339440539,-891.88,0.00022465,2]
[358653277,1745339440549,-500.0,0.00022465,2]
[358653279,1745339440558,-500.0,0.00022465,2]
[358653280,1745339440568,-500.0,0.00022465,2]
[358653282,1745339440578,-500.0,0.00022465,2]
[358653283,1745339440588,-1506.15,0.00022465,2]
[358653285,1745339440598,-500.0,0.00022465,2]
[358653287,1745339440607,-500.0,0.00022465,2]
[358653289,1745339440618,-500.0,0.00022465,2]
[358653291,1745339440628,-500.0,0.00022465,2]
[358653293,1745339440637,-500.0,0.00022465,2]
[358653295,1745339440647,-584.84,0.00022465,2]
[358653297,1745339440657,-500.0,0.00022473,2]
[358653299,1745339440667,-420.0,0.00022672,2]
[358653301,1745339440677,-420.0,0.00022672,2]
[358653303,1745339440687,-500.0,0.00022739,2]
[358653305,1745339440698,-500.0,0.00022739,2]
[358653307,1745339440707,-500.0,0.00022739,2]
[358653309,1745339440718,-500.0,0.00022739,2]
[358653311,1745339440729,-500.0,0.00022739,2]
[358653313,1745339440739,-386.68793361,0.00022739,2]
[358653315,1745339440749,-500.0,0.00022739,2]
[358653317,1745339440759,-500.0,0.00022739,2]
[358653319,1745339440768,-500.0,0.00022739,2]
[358653321,1745339440778,-500.0,0.00022739,2]
[358653323,1745339440789,-500.0,0.00022739,2]
[358653325,1745339440799,-500.0,0.00022739,2]
[358653328,1745339440810,-500.0,0.00022739,2]
[358653330,1745339440820,-753.42,0.00022739,2]
[358653332,1745339440830,-500.0,0.00022739,2]
[358653334,1745339440840,-1861.71,0.00022739,2]
[358653336,1745339440849,-184.21934752,0.00022739,2]
[358653338,1745339440859,-500.0,0.00022739,2]
[358653340,1745339440869,-422.49625108,0.00022739,2]
[358653342,1745339440878,-500.0,0.00022739,2]
[358653344,1745339440888,-555.27642363,0.00022739,2]
[358653346,1745339440898,-500.0,0.00022739,2]
[358653348,1745339440908,-500.0,0.00022739,2]
[358653349,1745339440917,-500.0,0.00022739,2]
[358653351,1745339440928,-200.68045778,0.00022739,2]
[358653353,1745339440937,-500.0,0.00022739,2]
[358653355,1745339440947,-500.0,0.00022739,2]
[358653357,1745339440957,-4876.32,0.00022739,2]
[358653359,1745339440966,-1501.19,0.00022739,2]
[358653361,1745339440976,-897.86,0.00022739,2]
[358653363,1745339440986,-500.0,0.00022739,2]
[358653366,1745339441000,-500.0,0.00022739,2]
[358653368,1745339441022,-500.0,0.00022739,2]
[358653371,1745339441038,-702.63,0.00022739,2]
[358653373,1745339441053,-500.0,0.00022739,2]
[358653376,1745339441067,-500.0,0.00022739,2]
[358653378,1745339441082,-2901.47,0.00022739,2]
[358653380,1745339441098,-500.0,0.00022739,2]
[358653382,1745339441109,-891.88,0.00022739,2]
[358653385,1745339441123,-500.0,0.00022739,2]
[358653387,1745339441136,-500.0,0.00022739,2]
[358653389,1745339441149,-500.0,0.00022739,2]
[358653392,1745339441163,-500.0,0.00022739,2]
[358653394,1745339441176,-1506.15,0.00022739,2]
[358653396,1745339441189,-500.0,0.00022739,2]
[358653399,1745339441203,-500.0,0.00022739,2]
[358653401,1745339441216,-500.0,0.00022739,2]
[358653403,1745339441230,-500.0,0.00022739,2]
[358653406,1745339441243,-500.0,0.00022739,2]
[358653408,1745339441257,-160.0,0.00023,3]
[358653410,1745339441271,-324.98450645,0.00023,2]
[358653413,1745339441284,-94185.3839301,0.00023011,2]
[358653415,1745339441297,-500.0,0.00023013,2]
[358653417,1745339441309,-500.0,0.00023013,2]
[358653420,1745339441323,-500.0,0.00023013,2]
[358653422,1745339441338,-390.72939004,0.00023013,2]
[358653425,1745339441352,-174.49282231,0.00023013,2]
[358653427,1745339441365,-500.0,0.00023013,2]
[358653428,1745339441378,-500.0,0.00023013,2]
[358653429,1745339441391,-500.0,0.00023013,2]
[358653430,1745339441404,-500.0,0.00023013,2]
[358653431,1745339441417,-500.0,0.00023013,2]
[358653432,1745339441428,-326.1196972,0.00023013,2]
[358653433,1745339441439,-500.0,0.00023013,2]
[358653434,1745339441451,-753.42,0.00023013,2]
[358653435,1745339441462,-500.0,0.00023013,2]
[358653436,1745339441474,-1861.71,0.00023013,2]
[358653437,1745339441486,-500.0,0.00023013,2]
[358653438,1745339441498,-500.0,0.00023013,2]
[358653439,1745339441511,-500.0,0.00023013,2]
[358653440,1745339441523,-500.0,0.00023013,2]
[358653441,1745339441536,-500.0,0.00023013,2]
[358653442,1745339441548,-500.0,0.00023013,2]
[358653443,1745339441561,-500.0,0.00023013,2]
[358653444,1745339441573,-4876.32,0.00023013,2]
[358653445,1745339441586,-1501.19,0.00023013,2]
[358653446,1745339441599,-897.86,0.00023013,2]
[358653448,1745339441612,-500.0,0.00023013,2]
[358653450,1745339441626,-500.0,0.00023013,2]
[358653452,1745339441636,-500.0,0.00023013,2]
[358653454,1745339441647,-702.63,0.00023013,2]
[358653456,1745339441658,-500.0,0.00023013,2]
[358653459,1745339441668,-2901.47,0.00023013,2]
[358653461,1745339441679,-500.0,0.00023013,2]
[358653463,1745339441692,-891.88,0.00023013,2]
[358653465,1745339441705,-500.0,0.00023013,2]
[358653468,1745339441719,-500.0,0.00023013,2]
[358653470,1745339441731,-500.0,0.00023013,2]
[358653472,1745339441743,-500.0,0.00023013,2]
[358653474,1745339441754,-1506.15,0.00023013,2]
[358653476,1745339441764,-500.0,0.00023013,2]
[358653479,1745339441776,-500.0,0.00023013,2]
[358653481,1745339441787,-500.0,0.00023013,2]
[358653483,1745339441799,-500.0,0.00023013,2]
[358653485,1745339441813,-500.0,0.00023013,2]
[358653487,1745339441826,-158.0,0.00023014,2]
[358653489,1745339441837,-300.0,0.0002311,2]
[358653491,1745339441848,-500.0,0.0002311,2]
[358653494,1745339441861,-500.0,0.0002311,2]
[358653496,1745339441872,-500.0,0.0002311,2]
[358653498,1745339441883,-501.04286608,0.0002311,2]
[358653500,1745339441895,-500.0,0.0002311,2]
[358653502,1745339441907,-500.0,0.0002311,2]
[358653504,1745339441918,-382.76224991,0.0002311,2]
[358653507,1745339441931,-500.0,0.0002311,2]
[358653509,1745339441943,-505.37046575,0.0002311,2]
[358653511,1745339441955,-594.02414013,0.00023207,2]
[358653514,1745339441968,-500.0,0.00023207,2]
[358653516,1745339441980,-796.9748342,0.00023229,2]
[358653518,1745339441991,-8791.48,0.00023273,3]
[358653520,1745339442003,-4395.74,0.00023273,3]
[358653523,1745339442018,-2197.88,0.00023273,3]
[358653525,1745339442031,-1098.94,0.00023273,3]
[358653527,1745339442043,-549.46,0.00023273,3]
[358653530,1745339442055,-151.0,0.00023273,7]
[358653532,1745339442067,-155.685092,0.00023273,7]
[358653534,1745339442080,-151.0,0.00023273,7]
[358653537,1745339442094,-151.0,0.00023273,7]
[358653539,1745339442108,-260.20223449,0.00023273,7]
[358653541,1745339442119,-151.0,0.00023273,7]
[358653544,1745339442132,-500.0,0.00023287,2]
[358653546,1745339442143,-500.0,0.00023287,2]
[358653548,1745339442155,-500.0,0.00023287,2]
[358653550,1745339442167,-500.0,0.00023287,2]
[358653552,1745339442179,-500.0,0.00023287,2]
[358653555,1745339442191,-500.0,0.00023287,2]
[358653557,1745339442202,-500.0,0.00023287,2]
[358653559,1745339442215,-500.0,0.00023287,2]
[358653561,1745339442227,-753.42,0.00023287,2]
[358653563,1745339442238,-500.0,0.00023287,2]
[358653566,1745339442250,-1861.71,0.00023287,2]
[358653568,1745339442261,-500.0,0.00023287,2]
[358653570,1745339442273,-500.0,0.00023287,2]
[358653571,1745339442286,-500.0,0.00023287,2]
[358653573,1745339442297,-500.0,0.00023287,2]
[358653575,1745339442309,-322.28843853,0.00023287,2]
[358653578,1745339442320,-500.0,0.00023287,2]
[358653580,1745339442331,-4876.32,0.00023287,2]
[358653582,1745339442342,-1501.19,0.00023287,2]
[358653584,1745339442353,-897.86,0.00023287,2]
[358653586,1745339442364,-500.0,0.00023287,2]
[358653588,1745339442375,-311.01486503,0.00023287,2]
[358653590,1745339442386,-500.0,0.00023287,2]
[358653593,1745339442397,-702.63,0.00023287,2]
[358653595,1745339442409,-500.0,0.00023287,2]
[358653597,1745339442419,-2901.47,0.00023287,2]
[358653599,1745339442432,-446.37446683,0.00023287,2]
[358653601,1745339442443,-891.88,0.00023287,2]
[358653603,1745339442454,-500.0,0.00023287,2]
[358653605,1745339442467,-500.0,0.00023287,2]
[358653608,1745339442479,-500.0,0.00023287,2]
[358653610,1745339442491,-500.0,0.00023287,2]
[358653612,1745339442502,-1506.15,0.00023287,2]
[358653614,1745339442514,-500.0,0.00023287,2]
[358653616,1745339442525,-500.0,0.00023287,2]
[358653618,1745339442537,-500.0,0.00023287,2]
[358653620,1745339442548,-500.0,0.00023287,2]
[358653623,1745339442559,-500.0,0.00023287,2]
[358653625,1745339442571,-154.97201393,0.00023355,2]
[358653627,1745339442583,-207.4,0.00023355,2]
[358653629,1745339442594,-500.0,0.0002353,2]
[358653631,1745339442603,-500.0,0.00023561,2]
[358653633,1745339442613,-500.0,0.00023561,2]
[358653635,1745339442622,-500.0,0.00023561,2]
[358653637,1745339442632,-500.0,0.00023561,2]
[358653639,1745339442642,-500.0,0.00023561,2]
[358653641,1745339442652,-500.0,0.00023561,2]
[358653643,1745339442662,-500.0,0.00023561,2]
[358653645,1745339442671,-500.0,0.00023561,2]
[358653647,1745339442681,-266.0,0.00023561,2]
[358653649,1745339442690,-500.0,0.00023561,2]
[358653651,1745339442700,-500.0,0.00023561,2]
[358653653,1745339442711,-500.0,0.00023561,2]
[358653654,1745339442720,-500.0,0.00023561,2]
[358653656,1745339442731,-500.0,0.00023561,2]
[358653658,1745339442741,-500.0,0.00023561,2]
[358653680,1745339442959,-151.0,0.00023561,7]
[358653683,1745339442980,-500.0,0.00023561,2]
[358653685,1745339442991,-151.0,0.00023561,7]
[358653687,1745339443000,-500.0,0.00023561,2]
[358653689,1745339443010,-151.0,0.00023561,7]
[358653691,1745339443019,-151.0,0.00023561,7]
[358653693,1745339443031,-753.42,0.00023561,2]
[358653694,1745339443041,-151.0,0.00023561,7]
[358653696,1745339443051,-151.0,0.00023561,7]
[358653698,1745339443061,-500.0,0.00023561,2]
[358653700,1745339443071,-1861.71,0.00023561,2]
[358653702,1745339443081,-500.0,0.00023561,2]
[358653704,1745339443095,-500.0,0.00023561,2]
[358653706,1745339443104,-500.0,0.00023561,2]
[358653708,1745339443115,-500.0,0.00023561,2]
[358653710,1745339443124,-151.0,0.00023561,7]
[358653713,1745339443135,-500.0,0.00023561,2]
[358653715,1745339443145,-4876.32,0.00023561,2]
[358653717,1745339443155,-1501.19,0.00023561,2]
[358653719,1745339443165,-151.0,0.00023561,7]
[358653720,1745339443176,-151.0,0.00023561,7]
[358653722,1745339443186,-897.86,0.00023561,2]
[358653724,1745339443195,-500.0,0.00023561,2]
[358653726,1745339443204,-500.0,0.00023561,2]
[358653728,1745339443217,-702.63,0.00023561,2]
[358653731,1745339443227,-500.0,0.00023561,2]
[358653733,1745339443237,-2901.47,0.00023561,2]
[358653735,1745339443247,-891.88,0.00023561,2]
[358653737,1745339443256,-500.0,0.00023561,2]
[358653739,1745339443267,-500.0,0.00023561,2]
[358653741,1745339443276,-500.0,0.00023561,2]
[358653743,1745339443286,-500.0,0.00023561,2]
[358653745,1745339443295,-1506.15,0.00023561,2]
[358653747,1745339443305,-500.0,0.00023561,2]
[358653749,1745339443314,-182.55560108,0.00023561,2]
[358653751,1745339443324,-500.0,0.00023561,2]
[358653753,1745339443333,-500.0,0.00023561,2]
[358653756,1745339443343,-500.0,0.00023561,2]
[358653759,1745339443353,-505.405,0.00023584,2]
[358653762,1745339443362,-544.0,0.00023584,2]
[358653765,1745339443372,-706.0,0.00023584,2]
[358653767,1745339443381,-2091.58981313,0.00023725,2]
[358653769,1745339443391,-178.91955306,0.00023835,2]
[358653771,1745339443400,-500.0,0.00023835,2]
[358653773,1745339443410,-500.0,0.00023835,2]
[358653775,1745339443420,-500.0,0.00023835,2]
[358653777,1745339443430,-500.0,0.00023835,2]
[358653778,1745339443439,-500.0,0.00023835,2]
[358653780,1745339443449,-500.0,0.00023835,2]
[358653783,1745339443462,-286.69584436,0.00023835,2]
[358653784,1745339443472,-753.42,0.00023835,2]
[358653786,1745339443482,-500.0,0.00023835,2]
[358653788,1745339443491,-1861.71,0.00023835,2]
[358653790,1745339443501,-318.26047517,0.00023835,2]
[358653792,1745339443510,-500.0,0.00023835,2]
[358653794,1745339443520,-500.0,0.00023835,2]
[358653796,1745339443530,-500.0,0.00023835,2]
[358653798,1745339443539,-4876.32,0.00023835,2]
[358653800,1745339443550,-1501.19,0.00023835,2]
[358653802,1745339443560,-897.86,0.00023835,2]
[358653804,1745339443569,-500.0,0.00023835,2]
[358653806,1745339443579,-500.0,0.00023835,2]
[358653808,1745339443589,-702.63,0.00023835,2]
[358653810,1745339443598,-193.23014678,0.00023835,2]
[358653812,1745339443608,-2901.47,0.00023835,2]
[358653814,1745339443617,-891.88,0.00023835,2]
[358653816,1745339443627,-500.0,0.00023835,2]
[358653818,1745339443636,-500.0,0.00023835,2]
[358653820,1745339443645,-500.0,0.00023835,2]
[358653822,1745339443655,-500.0,0.00023835,2]
[358653824,1745339443665,-1506.15,0.00023835,2]
[358653826,1745339443675,-500.0,0.00023835,2]
[358653828,1745339443685,-500.0,0.00023835,2]
[358653830,1745339443695,-500.0,0.00023835,2]
[358653832,1745339443715,-500.0,0.00023835,2]
[358653835,1745339443728,-303.0,0.000239,2]
[358653837,1745339443739,-600.0,0.00023934,2]
[358653839,1745339443749,-409.71731474,0.0002399,2]
[358653841,1745339443759,-184.116,0.00024,5]
[358653843,1745339443770,-1675.02439174,0.00024,2]
[358653845,1745339443780,-500.0,0.00024109,2]
[358653847,1745339443791,-500.0,0.00024109,2]
[358653849,1745339443801,-500.0,0.00024109,2]
[358653851,1745339443811,-500.0,0.00024109,2]
[358653853,1745339443822,-500.0,0.00024109,2]
[358653855,1745339443832,-500.0,0.00024109,2]
[358653857,1745339443843,-753.42,0.00024109,2]
[358653859,1745339443854,-230.31445908,0.00024109,2]
[358653861,1745339443865,-1861.71,0.00024109,2]
[358653863,1745339443875,-644.13977287,0.00024109,2]
[358653865,1745339443885,-500.0,0.00024109,2]
[358653867,1745339443895,-500.0,0.00024109,2]
[358653869,1745339443905,-4876.32,0.00024109,2]
[358653871,1745339443916,-1501.19,0.00024109,2]
[358653873,1745339443926,-897.86,0.00024109,2]
[358653874,1745339443936,-568.27,0.00024109,2]
[358653875,1745339443947,-702.63,0.00024109,2]
[358653876,1745339443957,-2901.47,0.00024109,2]
[358653877,1745339443968,-520.79,0.00024109,2]
[358653878,1745339443978,-520.79,0.00024109,2]
[358653879,1745339443989,-520.79,0.00024109,2]
[358653880,1745339443999,-520.79,0.00024109,2]
[358653881,1745339444010,-520.79,0.00024109,2]
[358653882,1745339444020,-520.79,0.00024109,2]
[358653884,1745339444030,-520.79,0.00024109,2]
[358653886,1745339444041,-520.79,0.00024109,2]
[358653888,1745339444051,-520.79,0.00024109,2]
[358653890,1745339444061,-891.88,0.00024109,2]
[358653892,1745339444071,-500.0,0.00024109,2]
[358653893,1745339444081,-500.0,0.00024109,2]
[358653894,1745339444092,-500.0,0.00024109,2]
[358653895,1745339444105,-1506.15,0.00024109,2]
[358653896,1745339444115,-508.88,0.00024109,2]
[358653897,1745339444124,-500.0,0.00024109,2]
[358653899,1745339444135,-500.0,0.00024109,2]
[358653901,1745339444146,-547.85,0.00024109,2]
[358653903,1745339444156,-493.326,0.00024134,6]
[358653905,1745339444166,-318.4057125,0.00024192,2]
[358653907,1745339444176,-566.3756473,0.00024192,2]
[358653909,1745339444186,-343.933143,0.00024192,2]
[358653911,1745339444196,-566.3756473,0.00024192,2]
[358653913,1745339444206,-566.3756473,0.00024192,2]
[358653915,1745339444217,-778.11,0.00024316,2]
[358653917,1745339444227,-2348.987,0.00024316,2]
[358653919,1745339444237,-500.0,0.00024383,2]
[358653921,1745339444247,-500.0,0.00024383,2]
[358653923,1745339444258,-500.0,0.00024383,2]
[358653925,1745339444268,-500.0,0.00024383,2]
[358653927,1745339444279,-500.0,0.00024383,2]
[358653929,1745339444290,-500.0,0.00024383,2]
[358653931,1745339444301,-500.0,0.00024383,2]
[358653933,1745339444311,-500.0,0.00024383,2]
[358653935,1745339444321,-500.0,0.00024383,2]
[358653937,1745339444331,-500.0,0.00024383,2]
[358653939,1745339444340,-500.0,0.00024383,2]
[358653941,1745339444350,-500.0,0.00024383,2]
[358653943,1745339444360,-500.0,0.00024383,2]
[358653945,1745339444371,-500.0,0.00024383,2]
[358653947,1745339444381,-415.20026424,0.00024383,2]
[358653949,1745339444391,-500.0,0.00024383,2]
[358653951,1745339444401,-753.42,0.00024383,2]
[358653953,1745339444412,-1861.71,0.00024383,2]
[358653955,1745339444423,-500.0,0.00024383,2]
[358653957,1745339444433,-500.0,0.00024383,2]
[358653959,1745339444443,-4876.32,0.00024383,2]
[358653961,1745339444453,-1501.19,0.00024383,2]
[358653963,1745339444463,-897.86,0.00024383,2]
[358653965,1745339444473,-702.63,0.00024383,2]
[358653967,1745339444483,-2901.47,0.00024383,2]
[358653969,1745339444494,-520.79,0.00024383,2]
[358653972,1745339444504,-891.88,0.00024383,2]
[358653974,1745339444515,-500.0,0.00024383,2]
[358653976,1745339444525,-500.0,0.00024383,2]
[358653977,1745339444535,-500.0,0.00024383,2]
[358653979,1745339444545,-1506.15,0.00024383,2]
[358653982,1745339444555,-500.0,0.00024383,2]
[358653984,1745339444566,-500.0,0.00024383,2]
[358653986,1745339444576,-481.59874171,0.0002439,2]
[358653988,1745339444586,-293.18206662,0.00024474,2]
[358653990,1745339444597,-151.0,0.000245,6]
[358653992,1745339444607,-153.0,0.0002463,2]
[358653994,1745339444617,-153.0,0.0002463,2]
[358653996,1745339444626,-153.0,0.0002463,2]
[358653998,1745339444636,-153.0,0.0002463,2]
[358654000,1745339444646,-153.0,0.0002463,2]
[358654002,1745339444655,-153.0,0.0002463,2]
[358654004,1745339444665,-153.0,0.0002463,2]
[358654006,1745339444675,-153.0,0.0002463,2]
[358654008,1745339444685,-153.0,0.0002463,2]
[358654010,1745339444694,-153.0,0.0002463,2]
[358654012,1745339444704,-153.0,0.0002463,2]
[358654014,1745339444715,-153.0,0.0002463,2]
[358654016,1745339444725,-153.0,0.0002463,2]
[358654018,1745339444735,-153.0,0.0002463,2]
[358654020,1745339444745,-153.0,0.0002463,2]
[358654022,1745339444754,-153.0,0.0002463,2]
[358654024,1745339444764,-153.0,0.0002463,2]
[358654025,1745339444774,-153.0,0.0002463,2]
[358654026,1745339444784,-153.0,0.0002463,2]
[358654027,1745339444794,-153.0,0.0002463,2]
[358654028,1745339444804,-153.0,0.0002463,2]
[358654029,1745339444813,-153.0,0.0002463,2]
[358654030,1745339444823,-153.0,0.0002463,2]
[358654031,1745339444833,-153.0,0.0002463,2]
[358654032,1745339444843,-153.0,0.0002463,2]
[358654033,1745339444853,-500.0,0.00024657,2]
[358654034,1745339444863,-227.90829156,0.00024657,2]
[358654035,1745339444872,-500.0,0.00024657,2]
[358654036,1745339444882,-458.08949782,0.00024657,2]
[358654037,1745339444892,-500.0,0.00024657,2]
[358654038,1745339444902,-500.0,0.00024657,2]
[358654039,1745339444912,-753.42,0.00024657,2]
[358654040,1745339444921,-1861.71,0.00024657,2]
[358654041,1745339444931,-500.0,0.00024657,2]
[358654042,1745339444942,-224.57227324,0.00024657,2]
[358654043,1745339444953,-4876.32,0.00024657,2]
[358654044,1745339444963,-1501.19,0.00024657,2]
[358654045,1745339444973,-897.86,0.00024657,2]
[358654046,1745339444982,-897.89866,0.00024657,7]
[358654047,1745339444992,-897.89866,0.00024657,7]
[358654048,1745339445002,-702.63,0.00024657,2]
[358654049,1745339445012,-2901.47,0.00024657,2]
[358654050,1745339445022,-520.79,0.00024657,2]
[358654051,1745339445032,-891.88,0.00024657,2]
[358654052,1745339445041,-500.0,0.00024657,2]
[358654053,1745339445051,-500.0,0.00024657,2]
[358654054,1745339445060,-350.49108901,0.00024657,2]
[358654055,1745339445070,-1506.15,0.00024657,2]
[358654056,1745339445079,-500.0,0.00024657,2]
[358654057,1745339445091,-500.0,0.00024657,2]
[358654058,1745339445101,-977.9923352,0.00024658,4]
[358654059,1745339445111,-200.0,0.00024658,15]
[358654060,1745339445121,-380.0,0.00024658,2]
[358654061,1745339445131,-151.0,0.00024658,7]
[358654062,1745339445141,-151.0,0.00024658,7]
[358654063,1745339445151,-151.0,0.00024658,7]
[358654064,1745339445160,-151.0,0.00024658,7]
[358654065,1745339445171,-151.0,0.00024658,7]
[358654066,1745339445180,-151.0,0.00024658,7]
[358654067,1745339445190,-193.34725938,0.00024658,2]
[358654068,1745339445200,-500.0,0.00024658,2]
[358654069,1745339445211,-500.0,0.00024658,2]
[358654070,1745339445221,-500.0,0.00024658,2]
[358654071,1745339445231,-500.0,0.00024658,2]
[358654072,1745339445241,-500.0,0.00024658,2]
[358654073,1745339445251,-500.0,0.00024658,2]
[358654074,1745339445262,-500.0,0.00024658,2]
[358654075,1745339445271,-500.0,0.00024658,2]
[358654077,1745339445281,-500.0,0.00024658,2]
[358654078,1745339445291,-500.0,0.00024658,2]
[358654079,1745339445301,-500.0,0.00024658,2]
[358654080,1745339445311,-500.0,0.00024658,2]
[358654081,1745339445321,-500.0,0.00024658,2]
[358654082,1745339445330,-500.0,0.00024658,2]
[358654083,1745339445340,-500.0,0.00024658,2]
[358654084,1745339445351,-521.84194104,0.00024658,2]
[358654085,1745339445361,-587.0,0.00024667,2]
[358654086,1745339445371,-151.0,0.000247,5]
[358654087,1745339445381,-293.18206662,0.0002474,2]
[358654088,1745339445390,-600.0,0.00024754,2]
[358654089,1745339445400,-160.0,0.00024799,2]
[358654090,1745339445411,-151.0,0.000248,7]
[358654091,1745339445421,-151.0,0.000248,7]
[358654092,1745339445431,-151.0,0.000248,7]
[358654093,1745339445441,-151.0,0.000248,7]
[358654094,1745339445451,-175.1,0.000248,2]
[358654095,1745339445462,-175.1,0.000248,2]
[358654096,1745339445472,-175.1,0.000248,2]
[358654097,1745339445482,-175.1,0.000248,2]
[358654098,1745339445492,-175.1,0.000248,2]
[358654099,1745339445503,-175.1,0.000248,2]
[358654100,1745339445514,-897.89866,0.000248,7]
[358654101,1745339445524,-897.89866,0.000248,7]
[358654102,1745339445534,-152.611639,0.000248,7]
[358654103,1745339445546,-151.0,0.000248,7]
[358654104,1745339445555,-151.0,0.000248,7]
[358654105,1745339445564,-151.0,0.000248,7]
[358654106,1745339445573,-151.0,0.000248,7]